[Event "Late-Titled-Tuesday-Blitz-March-12-2024"]
[Site "Chess.com"]
[Date "2024.03.12"]
[Round "3"]
[White "Supergiuly"]
[Black "noblerone"]
[Result "0-1"]
[WhiteElo "2354"]
[BlackElo "2596"]
[TimeControl "180+1"]
[EndTime "14:27:22 PDT"]
[Termination "noblerone won by checkmate"]

1. g3 {[%clk 0:03:00.9]} 1... d5 {[%clk 0:02:55]} 2. Bg2 {[%clk 0:03:01.8]} 2...
Nf6 {[%clk 0:02:55.2]} 3. Nf3 {[%clk 0:02:57.4]} 3... Bf5 {[%clk 0:02:51.6]} 4.
O-O {[%clk 0:02:56.9]} 4... e6 {[%clk 0:02:47.1]} 5. d3 {[%clk 0:02:50.5]} 5...
Bc5 {[%clk 0:02:43.6]} 6. c3 {[%clk 0:02:48.5]} 6... O-O {[%clk 0:02:42.8]} 7.
Nbd2 {[%clk 0:02:46.7]} 7... c6 {[%clk 0:02:41.9]} 8. Nb3 {[%clk 0:02:46.8]}
8... Bb6 {[%clk 0:02:40.2]} 9. Nh4 {[%clk 0:02:38.7]} 9... Bg4 {[%clk
0:02:37.8]} 10. h3 {[%clk 0:02:34.8]} 10... Bh5 {[%clk 0:02:37.7]} 11. Nf3
{[%clk 0:02:21.8]} 11... Nbd7 {[%clk 0:02:36.4]} 12. g4 {[%clk 0:02:20.4]} 12...
Bg6 {[%clk 0:02:32.9]} 13. Nh4 {[%clk 0:02:18.1]} 13... a5 {[%clk 0:02:10.3]}
14. Nxg6 {[%clk 0:02:16.5]} 14... hxg6 {[%clk 0:02:08.6]} 15. Bg5 {[%clk
0:02:15]} 15... Qc7 {[%clk 0:02:06.9]} 16. e4 {[%clk 0:02:12.4]} 16... dxe4
{[%clk 0:01:58.9]} 17. dxe4 {[%clk 0:02:09.8]} 17... Qe5 {[%clk 0:01:56]} 18.
Qc1 {[%clk 0:01:52.8]} 18... Qc7 {[%clk 0:01:24.8]} 19. Kh1 {[%clk 0:01:47.8]}
19... e5 {[%clk 0:01:18.9]} 20. Nd2 {[%clk 0:01:43.6]} 20... Nc5 {[%clk
0:01:16.7]} 21. Nc4 {[%clk 0:01:42]} 21... Ne6 {[%clk 0:01:16.5]} 22. Nxb6
{[%clk 0:01:23.5]} 22... Qxb6 {[%clk 0:01:17.4]} 23. Be3 {[%clk 0:01:16]} 23...
Qc7 {[%clk 0:01:17.3]} 24. g5 {[%clk 0:01:10.4]} 24... Nh5 {[%clk 0:01:16.5]}
25. Bf3 {[%clk 0:01:04.6]} 25... Nhf4 {[%clk 0:01:12.1]} 26. Bg4 {[%clk
0:01:02.8]} 26... Nxg5 {[%clk 0:01:07]} 27. Bxf4 {[%clk 0:00:56.9]} 27... exf4
{[%clk 0:01:07.1]} 28. Qe1 {[%clk 0:00:45]} 28... Qe5 {[%clk 0:01:05.7]} 29. f3
{[%clk 0:00:29.4]} 29... Rfd8 {[%clk 0:01:05]} 30. Rd1 {[%clk 0:00:27.1]} 30...
Nh7 {[%clk 0:00:59.5]} 31. h4 {[%clk 0:00:26.4]} 31... Nf6 {[%clk 0:00:59.4]}
32. Bh3 {[%clk 0:00:26.6]} 32... Nh5 {[%clk 0:01:00]} 33. Kh2 {[%clk 0:00:25.5]}
33... Ng3 {[%clk 0:00:59.7]} 34. Rf2 {[%clk 0:00:24.3]} 34... Qe7 {[%clk
0:00:50.5]} 35. Rfd2 {[%clk 0:00:20.9]} 35... Rxd2+ {[%clk 0:00:48.7]} 36. Qxd2
{[%clk 0:00:21.3]} 36... Qxh4 {[%clk 0:00:46.2]} 37. Qd7 {[%clk 0:00:20.4]}
37... Nh5 {[%clk 0:00:39]} 38. Rg1 {[%clk 0:00:16.5]} 38... Qf2+ {[%clk
0:00:34.1]} 39. Rg2 {[%clk 0:00:15.3]} 39... Qxf3 {[%clk 0:00:33.8]} 40. Qxb7
{[%clk 0:00:14.6]} 40... Rd8 {[%clk 0:00:30.3]} 41. Qxc6 {[%clk 0:00:14]} 41...
Ng3 {[%clk 0:00:28.1]} 42. Qc7 {[%clk 0:00:04.7]} 42... Rd1 {[%clk 0:00:20.6]}
43. Qc8+ {[%clk 0:00:03.8]} 43... Kh7 {[%clk 0:00:20.1]} 44. Rxg3 {[%clk
0:00:01.8]} 44... Qxg3# {[%clk 0:00:19.2]} 0-1

[Event "Late-Titled-Tuesday-Blitz-March-12-2024"]
[Site "Chess.com"]
[Date "2024.03.12"]
[Round "3"]
[White "WilsonPalencia21"]
[Black "Zapateado"]
[Result "0-1"]
[WhiteElo "2540"]
[BlackElo "2383"]
[TimeControl "180+1"]
[EndTime "14:27:26 PDT"]
[Termination "Zapateado won on time"]

1. d4 {[%clk 0:02:57.9]} 1... d5 {[%clk 0:02:55.6]} 2. c4 {[%clk 0:02:57.9]}
2... e5 {[%clk 0:02:55.9]} 3. dxe5 {[%clk 0:02:57]} 3... d4 {[%clk 0:02:56.6]}
4. Nf3 {[%clk 0:02:56]} 4... Nc6 {[%clk 0:02:57]} 5. g3 {[%clk 0:02:56.2]} 5...
Nge7 {[%clk 0:02:57.3]} 6. Bg2 {[%clk 0:02:56.4]} 6... Ng6 {[%clk 0:02:58]} 7.
O-O {[%clk 0:02:55.6]} 7... Ngxe5 {[%clk 0:02:58.6]} 8. Nxe5 {[%clk 0:02:54.8]}
8... Nxe5 {[%clk 0:02:59.5]} 9. Qa4+ {[%clk 0:02:53.2]} 9... c6 {[%clk
0:02:57.4]} 10. Rd1 {[%clk 0:02:52.1]} 10... Be7 {[%clk 0:02:43.9]} 11. Be3
{[%clk 0:02:51.6]} 11... d3 {[%clk 0:02:35]} 12. exd3 {[%clk 0:02:48.1]} 12...
Bg4 {[%clk 0:02:32.5]} 13. Re1 {[%clk 0:02:34.1]} 13... Nxd3 {[%clk 0:02:27.2]}
14. Nc3 {[%clk 0:02:07.3]} 14... Nxe1 {[%clk 0:02:24.2]} 15. Rxe1 {[%clk
0:02:08.2]} 15... O-O {[%clk 0:02:23.5]} 16. h3 {[%clk 0:02:03.6]} 16... Be6
{[%clk 0:02:22.1]} 17. Ne4 {[%clk 0:01:59.1]} 17... b5 {[%clk 0:02:10]} 18. cxb5
{[%clk 0:01:54.9]} 18... cxb5 {[%clk 0:02:10.9]} 19. Qxb5 {[%clk 0:01:54.9]}
19... Rb8 {[%clk 0:02:05.6]} 20. Qe2 {[%clk 0:01:42.9]} 20... Qa5 {[%clk
0:01:45.3]} 21. b3 {[%clk 0:01:12.7]} 21... Rfd8 {[%clk 0:01:42.4]} 22. Kh2
{[%clk 0:00:58.6]} 22... h6 {[%clk 0:01:36.6]} 23. Rc1 {[%clk 0:00:53.3]} 23...
Rbc8 {[%clk 0:01:33.7]} 24. Rxc8 {[%clk 0:00:51.9]} 24... Rxc8 {[%clk
0:01:34.6]} 25. Bd4 {[%clk 0:00:38.4]} 25... Qc7 {[%clk 0:01:16.4]} 26. Qh5
{[%clk 0:00:32.7]} 26... Qd7 {[%clk 0:00:44.5]} 27. Ba1 {[%clk 0:00:15.1]} 27...
Rc1 {[%clk 0:00:43]} 28. Qe5 {[%clk 0:00:13.4]} 28... Bf8 {[%clk 0:00:29.2]} 29.
Bb2 {[%clk 0:00:09.3]} 29... Rb1 {[%clk 0:00:24.5]} 30. Bd4 {[%clk 0:00:08.6]}
30... Rd1 {[%clk 0:00:23.1]} 31. Bc3 {[%clk 0:00:07.9]} 31... Rd3 {[%clk
0:00:17.4]} 32. Bb2 {[%clk 0:00:06.6]} 32... Rd5 {[%clk 0:00:13.4]} 33. Nf6+
{[%clk 0:00:06.6]} 33... gxf6 {[%clk 0:00:13.2]} 34. Qxf6 {[%clk 0:00:07]} 34...
Kh7 {[%clk 0:00:08.3]} 35. Be4+ {[%clk 0:00:05.1]} 35... Bf5 {[%clk 0:00:08.8]}
36. Qh8+ {[%clk 0:00:04.2]} 36... Kg6 {[%clk 0:00:08.9]} 37. Qg8+ {[%clk
0:00:03.9]} 37... Kh5 {[%clk 0:00:06.9]} 38. Qg4+ {[%clk 0:00:04.3]} 38... Bxg4
{[%clk 0:00:05.8]} 0-1

[Event "Late-Titled-Tuesday-Blitz-March-12-2024"]
[Site "Chess.com"]
[Date "2024.03.12"]
[Round "3"]
[White "AlexandreHouhou"]
[Black "BeanScreen"]
[Result "0-1"]
[WhiteElo "2327"]
[BlackElo "2731"]
[TimeControl "180+1"]
[EndTime "14:27:27 PDT"]
[Termination "BeanScreen won on time"]

1. e4 {[%clk 0:02:56.1]} 1... e5 {[%clk 0:02:10.2]} 2. Nf3 {[%clk 0:02:55.8]}
2... Nc6 {[%clk 0:02:10.3]} 3. Bb5 {[%clk 0:02:55.7]} 3... f5 {[%clk 0:02:09.5]}
4. Qe2 {[%clk 0:02:52]} 4... fxe4 {[%clk 0:02:09.2]} 5. Qxe4 {[%clk 0:02:52.1]}
5... Nf6 {[%clk 0:02:09.8]} 6. Qe2 {[%clk 0:02:50.3]} 6... d6 {[%clk 0:02:07.5]}
7. d4 {[%clk 0:02:46.8]} 7... e4 {[%clk 0:02:04]} 8. d5 {[%clk 0:02:47.3]} 8...
Nxd5 {[%clk 0:02:01.3]} 9. Qxe4+ {[%clk 0:02:45.9]} 9... Qe7 {[%clk 0:01:59.8]}
10. Qxe7+ {[%clk 0:02:45]} 10... Bxe7 {[%clk 0:02:00.1]} 11. O-O {[%clk
0:02:44.7]} 11... a6 {[%clk 0:01:46.7]} 12. Bc4 {[%clk 0:02:44]} 12... Ndb4
{[%clk 0:01:45.5]} 13. Bb3 {[%clk 0:02:41.2]} 13... Na5 {[%clk 0:01:39.1]} 14.
Na3 {[%clk 0:02:28.2]} 14... Nxb3 {[%clk 0:01:27]} 15. axb3 {[%clk 0:02:29.1]}
15... O-O {[%clk 0:01:23.6]} 16. Bd2 {[%clk 0:02:24.4]} 16... Nc6 {[%clk
0:01:14.8]} 17. Rfe1 {[%clk 0:02:24.8]} 17... Bf6 {[%clk 0:01:14.5]} 18. Bc3
{[%clk 0:02:23.1]} 18... Bxc3 {[%clk 0:01:09.1]} 19. bxc3 {[%clk 0:02:24]} 19...
Bf5 {[%clk 0:01:07.8]} 20. Nd4 {[%clk 0:02:20]} 20... Nxd4 {[%clk 0:00:59.6]}
21. cxd4 {[%clk 0:02:20.9]} 21... Rae8 {[%clk 0:00:55.9]} 22. f3 {[%clk
0:02:19.9]} 22... Kf7 {[%clk 0:00:46.1]} 23. Kf2 {[%clk 0:02:18.5]} 23... Rxe1
{[%clk 0:00:45.7]} 24. Rxe1 {[%clk 0:02:19.4]} 24... Re8 {[%clk 0:00:45.6]} 25.
Rxe8 {[%clk 0:02:17.2]} 25... Kxe8 {[%clk 0:00:46.5]} 26. Ke3 {[%clk 0:02:16.3]}
26... Ke7 {[%clk 0:00:45.2]} 27. h4 {[%clk 0:02:12.2]} 27... h6 {[%clk
0:00:39.7]} 28. Kf4 {[%clk 0:02:11.1]} 28... Kf6 {[%clk 0:00:36.5]} 29. c3
{[%clk 0:02:06.7]} 29... g5+ {[%clk 0:00:35.7]} 30. hxg5+ {[%clk 0:02:06.5]}
30... hxg5+ {[%clk 0:00:36.6]} 31. Ke3 {[%clk 0:02:06.6]} 31... b5 {[%clk
0:00:29.9]} 32. g3 {[%clk 0:02:04.6]} 32... c5 {[%clk 0:00:22.8]} 33. dxc5
{[%clk 0:01:44.7]} 33... dxc5 {[%clk 0:00:23.7]} 34. b4 {[%clk 0:01:44.9]} 34...
Ke5 {[%clk 0:00:20.6]} 35. bxc5 {[%clk 0:01:17.6]} 35... Kd5 {[%clk 0:00:20.6]}
36. c6 {[%clk 0:01:13.8]} 36... Kxc6 {[%clk 0:00:19]} 37. Kd4 {[%clk 0:01:14.1]}
37... a5 {[%clk 0:00:17.5]} 38. f4 {[%clk 0:01:07.4]} 38... gxf4 {[%clk
0:00:17.3]} 39. gxf4 {[%clk 0:01:08.3]} 39... Bh7 {[%clk 0:00:16.1]} 40. Ke3
{[%clk 0:00:47.2]} 40... Kc5 {[%clk 0:00:17]} 41. Kd2 {[%clk 0:00:47.2]} 41...
b4 {[%clk 0:00:14.6]} 42. cxb4+ {[%clk 0:00:35.7]} 42... axb4 {[%clk 0:00:15.5]}
43. Nc2 {[%clk 0:00:20.1]} 43... b3 {[%clk 0:00:15.5]} 44. Na3 {[%clk
0:00:04.7]} 44... Kb4 {[%clk 0:00:14.7]} 45. f5 {[%clk 0:00:01.3]} 45... Bxf5
{[%clk 0:00:13.1]} 0-1

[Event "Late-Titled-Tuesday-Blitz-March-12-2024"]
[Site "Chess.com"]
[Date "2024.03.12"]
[Round "3"]
[White "Payyappat"]
[Black "Gabcur"]
[Result "1-0"]
[WhiteElo "2555"]
[BlackElo "2305"]
[TimeControl "180+1"]
[EndTime "14:27:27 PDT"]
[Termination "Payyappat won by resignation"]

1. e4 {[%clk 0:03:00.9]} 1... e6 {[%clk 0:02:59.6]} 2. d4 {[%clk 0:03:00.5]}
2... d5 {[%clk 0:03:00]} 3. Nc3 {[%clk 0:03:00.3]} 3... Bb4 {[%clk 0:02:57.5]}
4. e5 {[%clk 0:03:00.2]} 4... Ne7 {[%clk 0:02:57.5]} 5. a3 {[%clk 0:02:59.2]}
5... Bxc3+ {[%clk 0:02:58.1]} 6. bxc3 {[%clk 0:03:00.1]} 6... c5 {[%clk
0:02:58.2]} 7. Qg4 {[%clk 0:03:00.4]} 7... Kf8 {[%clk 0:02:57.4]} 8. Bd2 {[%clk
0:02:57.6]} 8... Qe8 {[%clk 0:02:56.1]} 9. h4 {[%clk 0:02:55]} 9... Qa4 {[%clk
0:02:54.7]} 10. Ra2 {[%clk 0:02:53.9]} 10... Nbc6 {[%clk 0:02:53.7]} 11. Nf3
{[%clk 0:02:52.4]} 11... b6 {[%clk 0:02:53.7]} 12. h5 {[%clk 0:02:50.2]} 12...
h6 {[%clk 0:02:53.7]} 13. Qf4 {[%clk 0:02:47.9]} 13... cxd4 {[%clk 0:02:45.8]}
14. cxd4 {[%clk 0:02:47.3]} 14... Ba6 {[%clk 0:02:44.9]} 15. Bxa6 {[%clk
0:02:45.4]} 15... Qxa6 {[%clk 0:02:44.5]} 16. g4 {[%clk 0:02:39.7]} 16... Rc8
{[%clk 0:02:39.5]} 17. g5 {[%clk 0:02:37.3]} 17... Nf5 {[%clk 0:02:39.1]} 18. c3
{[%clk 0:02:31.6]} 18... Qd3 {[%clk 0:02:28.8]} 19. Ra1 {[%clk 0:02:30.2]} 19...
Qe4+ {[%clk 0:02:08.7]} 20. Qxe4 {[%clk 0:02:30]} 20... dxe4 {[%clk 0:02:09.6]}
21. Nh4 {[%clk 0:02:29.6]} 21... Nce7 {[%clk 0:02:05.6]} 22. Nxf5 {[%clk
0:02:21.4]} 22... Nxf5 {[%clk 0:02:06.5]} 23. Ke2 {[%clk 0:02:21.7]} 23... hxg5
{[%clk 0:02:01.6]} 24. Rag1 {[%clk 0:02:17.4]} 24... g6 {[%clk 0:01:18]} 25.
Rxg5 {[%clk 0:02:12.4]} 25... Rxh5 {[%clk 0:01:15]} 26. Rhxh5 {[%clk 0:02:09.4]}
26... gxh5 {[%clk 0:01:15.9]} 27. Rxh5 {[%clk 0:02:10.3]} 27... Kg7 {[%clk
0:01:05.9]} 28. Rg5+ {[%clk 0:02:09.3]} 28... Kf8 {[%clk 0:01:05.3]} 29. Rg4
{[%clk 0:02:10.2]} 29... Rc4 {[%clk 0:01:00.1]} 30. Rxe4 {[%clk 0:02:04]} 30...
Ra4 {[%clk 0:00:59.8]} 31. Rf4 {[%clk 0:02:00.1]} 31... b5 {[%clk 0:00:55]} 32.
Kd3 {[%clk 0:01:59.1]} 32... Rxa3 {[%clk 0:00:53.9]} 33. d5 {[%clk 0:01:58.4]}
33... b4 {[%clk 0:00:48.5]} 34. d6 {[%clk 0:01:38.6]} 34... b3 {[%clk
0:00:44.7]} 35. Rb4 {[%clk 0:01:37.6]} 35... Ke8 {[%clk 0:00:38.6]} 36. Rb7
{[%clk 0:01:33.5]} 36... f6 {[%clk 0:00:28.3]} 37. f4 {[%clk 0:00:20.5]} 37...
Ra5 {[%clk 0:00:16.4]} 38. c4 {[%clk 0:00:18.4]} 38... Ra3 {[%clk 0:00:15]} 39.
c5 {[%clk 0:00:18.3]} 39... b2+ {[%clk 0:00:14]} 40. Kc2 {[%clk 0:00:18.4]}
40... fxe5 {[%clk 0:00:13.3]} 41. fxe5 {[%clk 0:00:18.2]} 41... Nd4+ {[%clk
0:00:11.2]} 42. Kxb2 {[%clk 0:00:18.2]} 42... Ra6 {[%clk 0:00:10.9]} 43. d7+
{[%clk 0:00:18.2]} 1-0

[Event "Late-Titled-Tuesday-Blitz-March-12-2024"]
[Site "Chess.com"]
[Date "2024.03.12"]
[Round "3"]
[White "Herman-NY"]
[Black "ChessBrainiacOnTwitch"]
[Result "0-1"]
[WhiteElo "2533"]
[BlackElo "2775"]
[TimeControl "180+1"]
[EndTime "14:27:28 PDT"]
[Termination "ChessBrainiacOnTwitch won on time"]

1. e4 {[%clk 0:03:00.9]} 1... c5 {[%clk 0:02:56.9]} 2. Nf3 {[%clk 0:03:01.2]}
2... d6 {[%clk 0:02:55.4]} 3. d4 {[%clk 0:03:01.5]} 3... cxd4 {[%clk 0:02:56.3]}
4. Nxd4 {[%clk 0:03:01.9]} 4... Nf6 {[%clk 0:02:56.6]} 5. Nc3 {[%clk 0:03:02.6]}
5... Nc6 {[%clk 0:02:57.3]} 6. Bc4 {[%clk 0:03:02.3]} 6... e6 {[%clk 0:02:53.3]}
7. Be3 {[%clk 0:03:02.5]} 7... Be7 {[%clk 0:02:51.4]} 8. Qe2 {[%clk 0:03:02.9]}
8... a6 {[%clk 0:02:49]} 9. O-O-O {[%clk 0:03:02]} 9... Qc7 {[%clk 0:02:47.5]}
10. Bb3 {[%clk 0:03:02.3]} 10... b5 {[%clk 0:02:26.5]} 11. g4 {[%clk 0:02:51.8]}
11... Bb7 {[%clk 0:02:21.9]} 12. g5 {[%clk 0:02:51.7]} 12... Nxd4 {[%clk
0:02:13.7]} 13. Bxd4 {[%clk 0:02:40.8]} 13... Nd7 {[%clk 0:02:13.7]} 14. f4
{[%clk 0:02:30.5]} 14... e5 {[%clk 0:02:09.7]} 15. Be3 {[%clk 0:02:27.5]} 15...
exf4 {[%clk 0:02:06.9]} 16. Bxf4 {[%clk 0:02:27]} 16... Ne5 {[%clk 0:02:03.1]}
17. Nd5 {[%clk 0:02:27.1]} 17... Bxd5 {[%clk 0:01:59.8]} 18. Bxd5 {[%clk
0:02:27.2]} 18... Rc8 {[%clk 0:01:56.5]} 19. Kb1 {[%clk 0:02:26.2]} 19... O-O
{[%clk 0:01:56.2]} 20. Bxe5 {[%clk 0:02:26]} 20... dxe5 {[%clk 0:01:56.3]} 21.
h4 {[%clk 0:02:26.5]} 21... a5 {[%clk 0:01:43.8]} 22. Rh3 {[%clk 0:02:19.6]}
22... a4 {[%clk 0:01:42.5]} 23. Rf3 {[%clk 0:02:03.3]} 23... Kh8 {[%clk
0:00:58.9]} 24. Bxf7 {[%clk 0:01:59.3]} 24... Bc5 {[%clk 0:00:30.6]} 25. Rdf1
{[%clk 0:01:51.8]} 25... a3 {[%clk 0:00:30]} 26. h5 {[%clk 0:01:41.1]} 26...
axb2 {[%clk 0:00:27.7]} 27. h6 {[%clk 0:01:40.1]} 27... g6 {[%clk 0:00:23]} 28.
Bb3 {[%clk 0:01:13.6]} 28... Qe7 {[%clk 0:00:12.7]} 29. Rxf8+ {[%clk 0:00:52.5]}
29... Rxf8 {[%clk 0:00:13.6]} 30. Rxf8+ {[%clk 0:00:52.3]} 30... Qxf8 {[%clk
0:00:14.5]} 31. Qxb5 {[%clk 0:00:40.1]} 31... Bd4 {[%clk 0:00:10.1]} 32. Qc4
{[%clk 0:00:34]} 32... Be3 {[%clk 0:00:05.1]} 33. Qb5 {[%clk 0:00:15.9]} 33...
Bxg5 {[%clk 0:00:04.8]} 34. Qxe5+ {[%clk 0:00:16.1]} 34... Bf6 {[%clk
0:00:05.5]} 35. Qe6 {[%clk 0:00:07]} 35... Bc3 {[%clk 0:00:03.4]} 36. Qh3 {[%clk
0:00:06.6]} 36... Be5 {[%clk 0:00:01.4]} 37. a4 {[%clk 0:00:04.5]} 37... g5
{[%clk 0:00:01.8]} 38. a5 {[%clk 0:00:04]} 38... Qd8 {[%clk 0:00:02.3]} 39. Qd3
{[%clk 0:00:01.8]} 39... Qxa5 {[%clk 0:00:02.3]} 40. c3 {[%clk 0:00:01.8]} 40...
Qa1+ {[%clk 0:00:02.2]} 0-1

[Event "Late-Titled-Tuesday-Blitz-March-12-2024"]
[Site "Chess.com"]
[Date "2024.03.12"]
[Round "3"]
[White "Renatoforf"]
[Black "Mackster23"]
[Result "0-1"]
[WhiteElo "1585"]
[BlackElo "2569"]
[TimeControl "180+1"]
[EndTime "14:27:28 PDT"]
[Termination "Mackster23 won on time"]

1. e4 {[%clk 0:03:00.9]} 1... c5 {[%clk 0:02:59.7]} 2. Nf3 {[%clk 0:02:59.3]}
2... d6 {[%clk 0:02:59.7]} 3. d4 {[%clk 0:02:58.1]} 3... cxd4 {[%clk 0:03:00.6]}
4. Nxd4 {[%clk 0:02:57.8]} 4... Nf6 {[%clk 0:03:01.2]} 5. Nc3 {[%clk 0:02:57.3]}
5... a6 {[%clk 0:03:01.4]} 6. Bc4 {[%clk 0:02:53]} 6... e6 {[%clk 0:02:55.1]} 7.
a3 {[%clk 0:02:50.6]} 7... Be7 {[%clk 0:02:51.8]} 8. Ba2 {[%clk 0:02:46.8]} 8...
O-O {[%clk 0:02:51.3]} 9. O-O {[%clk 0:02:45.4]} 9... Nc6 {[%clk 0:02:48.7]} 10.
Be3 {[%clk 0:02:41.1]} 10... Bd7 {[%clk 0:02:47.2]} 11. f4 {[%clk 0:02:36.5]}
11... Rc8 {[%clk 0:02:46.3]} 12. f5 {[%clk 0:02:35.3]} 12... Nxd4 {[%clk
0:02:42]} 13. Bxd4 {[%clk 0:02:33.4]} 13... e5 {[%clk 0:02:42.2]} 14. Be3 {[%clk
0:02:29.6]} 14... Rxc3 {[%clk 0:02:39.9]} 15. bxc3 {[%clk 0:02:27.9]} 15... Nxe4
{[%clk 0:02:40.5]} 16. Qd3 {[%clk 0:02:13.2]} 16... Nf6 {[%clk 0:02:39]} 17. Kh1
{[%clk 0:02:09.5]} 17... Bc6 {[%clk 0:02:38.8]} 18. Bg5 {[%clk 0:02:06.1]} 18...
Qa5 {[%clk 0:02:09.4]} 19. Rad1 {[%clk 0:01:52.5]} 19... Qxa3 {[%clk 0:02:04.7]}
20. Bxf6 {[%clk 0:01:51.2]} 20... Bxf6 {[%clk 0:02:03.2]} 21. Bd5 {[%clk
0:01:49.8]} 21... Rd8 {[%clk 0:01:23.2]} 22. c4 {[%clk 0:01:47]} 22... Qc5
{[%clk 0:01:19.8]} 23. h3 {[%clk 0:01:31]} 23... h6 {[%clk 0:01:16.3]} 24. Qe4
{[%clk 0:01:21.7]} 24... Rc8 {[%clk 0:01:13.6]} 25. Qf3 {[%clk 0:01:09.9]} 25...
Be7 {[%clk 0:00:55.8]} 26. Qh5 {[%clk 0:00:59.6]} 26... Bxd5 {[%clk 0:00:53.5]}
27. cxd5 {[%clk 0:00:57.1]} 27... Qxc2 {[%clk 0:00:35.7]} 28. f6 {[%clk
0:00:49.9]} 28... Bxf6 {[%clk 0:00:35]} 29. Rxf6 {[%clk 0:00:48.5]} 29... gxf6
{[%clk 0:00:35.9]} 30. Rf1 {[%clk 0:00:46.9]} 30... Qg6 {[%clk 0:00:33.1]} 31.
Qh4 {[%clk 0:00:44.6]} 31... f5 {[%clk 0:00:23.5]} 32. Qe7 {[%clk 0:00:42.7]}
32... b5 {[%clk 0:00:17.5]} 33. Qd7 {[%clk 0:00:40.2]} 33... Rc2 {[%clk
0:00:15.5]} 34. g4 {[%clk 0:00:36.6]} 34... fxg4 {[%clk 0:00:13.9]} 35. Qxg4
{[%clk 0:00:35.3]} 35... Qxg4 {[%clk 0:00:13.5]} 36. hxg4 {[%clk 0:00:34.9]}
36... Rd2 {[%clk 0:00:13.7]} 37. Ra1 {[%clk 0:00:34]} 37... Rxd5 {[%clk
0:00:13]} 38. Rxa6 {[%clk 0:00:33]} 38... Rd4 {[%clk 0:00:13.2]} 39. Rb6 {[%clk
0:00:31.5]} 39... b4 {[%clk 0:00:12.6]} 40. Kh2 {[%clk 0:00:30.7]} 40... Kg7
{[%clk 0:00:12.8]} 41. Kg3 {[%clk 0:00:30.1]} 41... Kg6 {[%clk 0:00:13.5]} 42.
Kh4 {[%clk 0:00:28]} 42... h5 {[%clk 0:00:13.5]} 0-1

[Event "Late-Titled-Tuesday-Blitz-March-12-2024"]
[Site "Chess.com"]
[Date "2024.03.12"]
[Round "3"]
[White "mishanick"]
[Black "Zhigalko_Sergei"]
[Result "0-1"]
[WhiteElo "3100"]
[BlackElo "2861"]
[TimeControl "180+1"]
[EndTime "14:27:33 PDT"]
[Termination "Zhigalko_Sergei won by resignation"]

1. d4 {[%clk 0:03:00.9]} 1... Nf6 {[%clk 0:02:59.5]} 2. c4 {[%clk 0:03:01.6]}
2... e6 {[%clk 0:02:59.6]} 3. Nc3 {[%clk 0:03:02.3]} 3... Bb4 {[%clk 0:02:59.6]}
4. e3 {[%clk 0:03:03]} 4... O-O {[%clk 0:02:59.5]} 5. Bd3 {[%clk 0:03:03.7]}
5... c5 {[%clk 0:02:56.1]} 6. Nf3 {[%clk 0:03:03.3]} 6... Nc6 {[%clk 0:02:55.2]}
7. O-O {[%clk 0:03:02.7]} 7... Bxc3 {[%clk 0:02:55.8]} 8. bxc3 {[%clk 0:03:03]}
8... d6 {[%clk 0:02:56.7]} 9. e4 {[%clk 0:03:02.3]} 9... e5 {[%clk 0:02:56.7]}
10. d5 {[%clk 0:03:02.8]} 10... Ne7 {[%clk 0:02:54.7]} 11. Nh4 {[%clk
0:03:03.3]} 11... h6 {[%clk 0:02:34.1]} 12. f4 {[%clk 0:02:53.3]} 12... Ng6
{[%clk 0:02:33.2]} 13. fxe5 {[%clk 0:02:17.2]} 13... Nxe5 {[%clk 0:02:24.3]} 14.
Nf3 {[%clk 0:02:17.8]} 14... Nxd3 {[%clk 0:01:47.7]} 15. Qxd3 {[%clk 0:02:17.8]}
15... Re8 {[%clk 0:01:48.6]} 16. Re1 {[%clk 0:02:09.5]} 16... Bg4 {[%clk
0:01:39.2]} 17. Bf4 {[%clk 0:02:01.9]} 17... Nh5 {[%clk 0:01:22.3]} 18. Bd2
{[%clk 0:02:02.2]} 18... Qf6 {[%clk 0:01:20.2]} 19. Rf1 {[%clk 0:01:55.5]} 19...
Qg6 {[%clk 0:01:17]} 20. Rae1 {[%clk 0:01:55]} 20... Nf6 {[%clk 0:01:01.9]} 21.
Nh4 {[%clk 0:01:40.7]} 21... Qh5 {[%clk 0:01:02]} 22. Nf5 {[%clk 0:01:38]} 22...
Bxf5 {[%clk 0:00:58.9]} 23. Rxf5 {[%clk 0:01:38.9]} 23... Qg6 {[%clk 0:00:58.2]}
24. Qf3 {[%clk 0:01:33.8]} 24... Re7 {[%clk 0:00:50.9]} 25. e5 {[%clk
0:00:34.4]} 25... Rae8 {[%clk 0:00:47.3]} 26. exf6 {[%clk 0:00:22]} 26... Rxe1+
{[%clk 0:00:48.2]} 27. Bxe1 {[%clk 0:00:22.5]} 27... Rxe1+ {[%clk 0:00:48.9]}
28. Kf2 {[%clk 0:00:23.3]} 28... Ra1 {[%clk 0:00:48.8]} 29. fxg7 {[%clk
0:00:21.9]} 29... Rxa2+ {[%clk 0:00:49.1]} 30. Kg1 {[%clk 0:00:22.1]} 30...
Rxg2+ {[%clk 0:00:43.5]} 31. Qxg2 {[%clk 0:00:20.6]} 31... Qxf5 {[%clk
0:00:43.8]} 32. Qa2 {[%clk 0:00:21.1]} 32... a6 {[%clk 0:00:40.3]} 33. Qa5
{[%clk 0:00:21.6]} 33... Kxg7 {[%clk 0:00:36.5]} 34. Qc7 {[%clk 0:00:21.7]}
34... Qg4+ {[%clk 0:00:33.4]} 35. Kf2 {[%clk 0:00:21.9]} 35... Qf4+ {[%clk
0:00:29.4]} 36. Kg2 {[%clk 0:00:22.3]} 36... b5 {[%clk 0:00:27.8]} 37. Qb6
{[%clk 0:00:15.6]} 37... bxc4 {[%clk 0:00:20.5]} 38. Qxa6 {[%clk 0:00:13.3]}
38... Qd2+ {[%clk 0:00:20.1]} 39. Kg1 {[%clk 0:00:12.7]} 39... Qxd5 {[%clk
0:00:18.5]} 40. Qa1 {[%clk 0:00:11.7]} 40... Qd3 {[%clk 0:00:13.9]} 41. Qe1
{[%clk 0:00:07.9]} 41... Qg6+ {[%clk 0:00:11.2]} 42. Kh1 {[%clk 0:00:08]} 42...
Qf6 {[%clk 0:00:09.9]} 43. Qg3+ {[%clk 0:00:07.8]} 43... Kh7 {[%clk 0:00:09.6]}
44. Qe3 {[%clk 0:00:07.5]} 44... Qf1+ {[%clk 0:00:08]} 0-1